Cogmind - Beta 13 *** ADVENTURER MODE // 2024.04.03 @ 18:15:53 Player: Peperos Result: Self-destructed Performance ------------- Evolutions (0) 0 Regions Visited (4) 800 Robots Destroyed (34) 170 Value Destroyed (500) 500 Prototype IDs (0) 0 Alien Tech Used (0) 0 Bonus (0) 0 TOTAL SCORE: 1470 Bonus ------- None Cogmind --------- Core Integrity 34/250 Matter 295/300 Energy 160/160 System Corruption 0% Temperature Cool (0) Movement Treading (320) Ox2 Location -9/Mines Parts ------- > --- POWER (1) -------- Light Nuclear Core > --- PROPULSION (2) --- Light Treads > --- UTILITY (2) ------ High-capacity Storage Unit Structural Scanner > --- WEAPON (2) ------- Light Assault Rifle Ripper > --- INVENTORY (20) --- Light Ion Engine Light Ion Engine Light Nuclear Core Light Treads Flight Unit Structural Scanner Transport Network Coupler Assault Rifle Assault Rifle Rocket Launcher Peak State ------------ > --- POWER ------------ Light Nuclear Core > --- PROPULSION ------- Light Treads Light Treads > --- UTILITY ---------- Medium Storage Unit Structural Scanner > --- WEAPON ----------- Assault Rifle Ripper > --- INVENTORY -------- Light Ion Engine Light Ion Engine Light Treads Light Treads Flight Unit Structural Scanner Transport Network Coupler Assault Rifle Assault Rifle Light Assault Rifle [Rating: 13] Favorites ----------- Power Light Nuclear Core Engine Light Ion Engine Power Core Light Nuclear Core Propulsion Light Treads Treads Light Treads Utility Structural Scanner Device Structural Scanner Storage Medium Storage Unit Weapon Assault Rifle Ballistic Gun Assault Rifle Slashing Weapon Ripper Build | -11 -10 -10 -10 -9 ------- Run | Yrd Mat Min Exi Min Slots Evolved . | . . . . . Power . | . . . . . Propulsion . | . . . . . Utility . | . . . . . Weapon . | . . . . . Parts Attached 15 | 6 4 . 2 3 Power 4 | 1 2 . . 1 Engine 1 | 1 . . . . Core 3 | . 2 . . 1 Reactor . | . . . . . Propulsion 3 | 2 . . . 1 Treads 3 | 2 . . . 1 Leg . | . . . . . Wheel . | . . . . . Hover . | . . . . . Flight . | . . . . . Utility 4 | 1 2 . 1 . Device 1 | . 1 . . . Storage 3 | 1 1 . 1 . Processor . | . . . . . Hackware . | . . . . . Protection . | . . . . . Artifact . | . . . . . Weapon 4 | 2 . . 1 1 Energy Gun . | . . . . . Energy Cannon . | . . . . . Ballistic Gun 3 | 2 . . . 1 Ballistic Cannon . | . . . . . Launcher . | . . . . . Special Weapon . | . . . . . Impact Weapon . | . . . . . Slashing Weapon 1 | . . . 1 . Piercing Weapon . | . . . . . Special Melee Weapon . | . . . . . Unidentified Prototypes . | . . . . . Parts Lost 3 | . . . . 3 Power . | . . . . . Propulsion 2 | . . . . 2 Utility . | . . . . . Weapon 1 | . . . . 1 Highest Loss Streak 2 | . . . . 2 To Critical Strikes . | . . . . . Average Slot Usage (%) 99 | . 97 100 100 99 Core 13 | . 12 14 14 14 Treads 28 | . 28 28 28 28 Device 13 | . 12 14 14 14 Storage 14 | . 14 14 14 14 Ballistic Gun 22 | . 28 28 19 13 Slashing Weapon 5 | . . . 8 14 Naked Turns . | . . . . . Heaviest Build 51 | 12 20 20 51 51 Greatest Support 40 | 40 40 40 40 40 Greatest Overweight (x) 1 | . . . 1 1 Average Overweight (x) . | . . . . 1 Largest Inventory Capacity 20 | 8 10 10 20 20 Average Capacity 12 | 6 9 10 11 20 Most Carried 11 | 2 9 10 10 11 Average Carried 8 | 1 7 9 10 9 Final Capacity 20 | 8 10 10 20 20 Final Carried 10 | 2 9 10 10 10 Class Distribution -------------------- 100% | Mutant Dominant Class ---------------- Mutant | -10/Materials Mutant | -10/Mines Mutant | -10/Exiles Mutant | -9/Mines Resources | -11 -10 -10 -10 -9 ----------- Run | Yrd Mat Min Exi Min Matter Collected 675 | 224 335 66 . 50 Remotely . | . . . . . Salvage Created 1032 | . 561 86 . 385 Parts 76 | . 38 11 . 27 Haulers Intercepted 2 | . 2 . . . Recyclers Shooed . | . . . . . Parts Field Recycled . | . . . . . Retrieved Matter . | . . . . . Parts Self-Destructed . | . . . . . Prevented . | . . . . . Kills | -11 -10 -10 -10 -9 ------- Run | Yrd Mat Min Exi Min Combat Hostiles Destroyed 20 | . 7 6 . 7 Melee 6 | . . . . 6 Guns 14 | . 7 6 . 1 Classes Destroyed 9 | . 6 . . 3 Worker 4 | . . . . 4 Builder 1 | . 1 . . . Tunneler 2 | . . . . 2 Hauler 2 | . 2 . . . Recycler 3 | . 2 . . 1 Watcher 3 | . 3 . . . Swarmer 12 | . 3 6 . 3 Grunt 7 | . 4 . . 3 Assembled 1 | . . . . 1 Best Kill Streak 4 | . 4 3 . 3 Combat Bots Only 3 | . 3 3 . 3 Max Kills in Single Turn 2 | . 1 2 . 1 Gunslinging 1 | . . 1 . . Exploded . | . . . . . Melee 1 | . . . . 1 Uniques/NPCs Destroyed . | . . . . . Combat | -11 -10 -10 -10 -9 -------- Run | Yrd Mat Min Exi Min Hostile Shots Fired 129 | . 44 38 . 47 Missed 26 | . 11 8 . 7 Damage Taken 830 | . 319 171 . 340 Core 216 | . 87 30 . 99 Absorbed by Shields . | . . . . . Ignored by Resistances 261 | . 95 60 . 106 Regen/Repaired (Parts) 20 | . 20 . . . Core Remaining (%) 100 | 100 . . . . Volleys Fired 60 | . 44 11 . 5 Largest 2 | . 2 2 . 1 Hottest 40 | . 40 40 . 20 Shots Fired 115 | . 88 22 . 5 Gun 115 | . 88 22 . 5 Cannon . | . . . . . Launcher . | . . . . . Special . | . . . . . Kinetic 115 | . 88 22 . 5 Thermal . | . . . . . Explosive . | . . . . . Electromagnetic . | . . . . . Robot Hit Streak 28 | . 28 9 . 2 Robot Miss Streak 5 | . 5 1 . 2 Penetration Max . | . . . . . Secondary Targets 3 | . . 3 . . Max Gunslinging Chain 1 | . . 1 . . Shots Hit Robots 97 | . 63 17 . 17 Core Hits 44 | . 25 6 . 13 Critical Kills 1 | . 1 . . . Critical Parts Destroyed 1 | . 1 . . . Critical Strikes 3 | . 2 . . 1 Destroy 2 | . 2 . . . Sever 1 | . . . . 1 Melee Attacks 20 | . . . 4 16 Impact . | . . . . . Slashing 20 | . . . 4 16 Piercing . | . . . . . Sneak Attacks 8 | . . . . 8 Combat Hostiles . | . . . . . Follow-up Attacks . | . . . . . Damage Inflicted 1890 | . 799 216 . 875 Guns 1037 | . 795 216 . 26 Cannons . | . . . . . Explosions . | . . . . . Melee 839 | . . . . 839 Ramming 14 | . 4 . . 10 Kinetic 1037 | . 795 216 . 26 Thermal . | . . . . . Explosive . | . . . . . Electromagnetic . | . . . . . Impact . | . . . . . Slashing 839 | . . . . 839 Piercing . | . . . . . Highest Corruption . | . . . . . Average Corruption . | . . . . . Corruption Purged . | . . . . . Corruption Blocked . | . . . . . Overload Shots . | . . . . . Overflow Damage 89 | . . . . 89 Projectiles . | . . . . . Explosions . | . . . . . Melee 89 | . . . . 89 Knockbacks . | . . . . . Impact . | . . . . . Kinetic . | . . . . . Secondary . | . . . . . Self-Inflicted Damage . | . . . . . Shots . | . . . . . Rammed 5 | . 3 . . 2 Targets Rammed 6 | . 3 . . 3 Kicked . | . . . . . Crushed 1 | . . . . 1 Highest Temperature 11 | . 4 . . 11 Average Temperature 3 | . 2 . . 11 Received Heat Transfer 285 | . 213 . . 72 Siege Activations . | . . . . . Robots Corrupted . | . . . . . Combat Hostiles . | . . . . . Parts Fried . | . . . . . Impact Corruptions . | . . . . . Robots Melted . | . . . . . Combat Hostiles . | . . . . . Parts Melted . | . . . . . Heat Transferred . | . . . . . Parts Sabotaged . | . . . . . Parts Stolen . | . . . . . Parts Stripped . | . . . . . Power Chain Reactions . | . . . . . Alert | -11 -10 -10 -10 -9 ------- Run | Yrd Mat Min Exi Min Peak Influence 174 | . 142 92 . 174 Initial 7 | . . 7 . . Average 49 | . 56 61 . 37 Maximum Alert Level . | . . . . . Low Security (%) 100 | 100 100 100 . 100 Level 1 . | . . . . . Level 2 . | . . . . . Level 3 . | . . . . . Level 4 . | . . . . . Level 5 . | . . . . . High Security . | . . . . . Max Security . | . . . . . Squads Dispatched . | . . . . . Investigation . | . . . . . Extermination . | . . . . . Reinforcement . | . . . . . Assault . | . . . . . Garrison . | . . . . . Intercept . | . . . . . Searches Triggered . | . . . . . Construction Impeded . | . . . . . Haulers Reinforced . | . . . . . Active Scanning Responses . | . . . . . Cargo Convoy Interrupts . | . . . . . Stealth | -11 -10 -10 -10 -9 --------- Run | Yrd Mat Min Exi Min Distress Signals . | . . . . . Communications Jammed . | . . . . . Distress Signals . | . . . . . Times Spotted 43 | . 14 6 . 23 Peak Tracking Total 19 | . 2 3 . 19 Tactical Retreats 2 | . . . . 2 Traps | -11 -10 -10 -10 -9 ------- Run | Yrd Mat Min Exi Min Traps Triggered . | . . . . . Indirectly . | . . . . . Trap Hack Attempts . | . . . . . Triggered . | . . . . . Disarmed . | . . . . . Reprogrammed . | . . . . . Reused . | . . . . . Traps Extracted . | . . . . . Installed . | . . . . . Triggered . | . . . . . Machines | -11 -10 -10 -10 -9 ---------- Run | Yrd Mat Min Exi Min Machines Disabled 1 | . . . . 1 Max in Single Turn 1 | . . . . 1 Machines Repaired . | . . . . . Machines Dismantled . | . . . . . Machines Sabotaged . | . . . . . Overloaded Fab Kills . | . . . . . Hacking | -11 -10 -10 -10 -9 --------- Run | Yrd Mat Min Exi Min Machines Accessed 9 | . 5 . 4 . Terminals 4 | . 4 . . . Fabricators . | . . . . . Repair Stations 1 | . 1 . . . Recycling Units . | . . . . . Scanalyzers . | . . . . . Garrison Access . | . . . . . Total Hacks 14 | . 10 . 4 . Successful 9 | . 5 . 4 . Failed 5 | . 5 . . . Catastrophic 2 | . 2 . . . Database Lockouts . | . . . . . Manual 6 | . 6 . . . Terminals 8 | . 8 . . . Fabricators . | . . . . . Repair Stations 2 | . 2 . . . Recycling Units . | . . . . . Scanalyzers . | . . . . . Garrison Access . | . . . . . Terminal Hacks 7 | . 3 . 4 . Record 4 | . . . 4 . Branch Access Points 1 | . 1 . . . Emergency Access Points 1 | . 1 . . . Terminal Index 1 | . 1 . . . Fabricator Hacks . | . . . . . Repair Station Hacks 2 | . 2 . . . Scan Component 1 | . 1 . . . Repair 1 | . 1 . . . Recycling Unit Hacks . | . . . . . Scanalyzer . | . . . . . Garrison Access Hacks . | . . . . . Unauthorized Hacks . | . . . . . Terminals . | . . . . . Fabricators . | . . . . . Repair Stations . | . . . . . Recycling Units . | . . . . . Scanalyzers . | . . . . . Garrison Access . | . . . . . Data Cores Recovered . | . . . . . Used . | . . . . . Hacking Detections 3 | . 3 . . . Full Trace Events 2 | . 2 . . . Feedback Events . | . . . . . Feedback Blocked . | . . . . . Robot Schematics Acquired . | . . . . . Robots Built . | . . . . . Authchips . | . . . . . Time . | . . . . . Total Robot Build Rating . | . . . . . Part Schematics Acquired . | . . . . . Parts Built . | . . . . . Authchips . | . . . . . Time . | . . . . . Total Part Build Rating . | . . . . . Parts Repaired 1 | . 1 . . . Time 38 | . 38 . . . Parts Recycled . | . . . . . Recycled Matter . | . . . . . Retrieved Matter . | . . . . . Retrieved Components . | . . . . . Parts Scanalyzed . | . . . . . Part Schematics Acquired . | . . . . . Parts Damaged . | . . . . . Bothacking | -11 -10 -10 -10 -9 ------------ Run | Yrd Mat Min Exi Min Used RIF Installer . | . . . . . Robots Hacked . | . . . . . Non-combat . | . . . . . Combat . | . . . . . Robot Hacks Applied . | . . . . . Relay Couplers Released . | . . . . . Fabnet Peak Effective % . | . . . . . Robots Rewired . | . . . . . Allies Hacked . | . . . . . Hacks Repelled . | . . . . . Allies | -11 -10 -10 -10 -9 -------- Run | Yrd Mat Min Exi Min Total Allies 3 | . . . . 3 Largest Group 3 | . . . . 3 Highest-Rated Group 40 | . . . . 40 Highest-Rated Ally 16 | . . . . 16 Total Orders . | . . . . . Ally Attacks 10 | . . . . 10 Total Damage 95 | . . . . 95 Kills . | . . . . . Allies Corrupted . | . . . . . Allies Melted . | . . . . . Intel | -11 -10 -10 -10 -9 ------- Run | Yrd Mat Min Exi Min Robot Analysis Total . | . . . . . Derelict Logs Recovered 4 | . . 2 . 2 Drone Launches . | . . . . . Drone Recoveries . | . . . . . Exploration | -11 -10 -10 -10 -9 ------------- Run | Yrd Mat Min Exi Min Turns Passed 3582 | 72 1065 693 776 976 Spaces Moved 1803 | 41 515 408 459 380 Core 3 | 3 . . . . Treads 1800 | 38 515 408 459 380 Legs . | . . . . . Wheels . | . . . . . Hover . | . . . . . Flight . | . . . . . Fastest Speed 50 | 50 160 160 160 240 Average Speed 178 | 151 160 160 166 240 Slowest Speed 240 | 160 160 160 240 240 Overloaded Moves . | . . . . . Propulsion Burnouts . | . . . . . Robots Hopped . | . . . . . Cave-ins Triggered . | . . . . . Exploration Rate (%) 68 | 4 92 84 88 73 Regions Visited 4 Branch Regions 3 Pre-discovered Areas 2 | . . 1 . 1 Known Exits Taken 1 | . 1 . . . Unknown Exits Taken 3 | 1 . 1 1 . Scrap Searched 3 | . . 1 . 2 Spaces Dug 1 | . . . 1 . Terrain Destroyed 1 | . . . 1 . Melee 1 | . . . 1 . Projectile . | . . . . . AOE . | . . . . . Terrain Rammed . | . . . . . Walls Destroyed . | . . . . . Machines Disabled . | . . . . . Actions | -11 -10 -10 -10 -9 --------- Run | Yrd Mat Min Exi Min Total 2016 | 48 665 428 465 410 Wait 101 | . 93 7 . 1 Move 1799 | 40 514 407 458 380 Hop . | . . . . . Pick Up 12 | 2 6 2 . 2 Fast Attach 8 | 6 2 . . . Attach 2 | . . . . 2 Detach . | . . . . . Swap 5 | . 2 . 2 1 Drop 3 | . 1 1 1 . Fire 60 | . 44 11 . 5 Melee 20 | . . . 4 16 Ram . | . . . . . Kick . | . . . . . Crush 6 | . 3 . . 3 Escape Stasis . | . . . . . Rewire . | . . . . . Trap . | . . . . . Miscellaneous . | . . . . . Route ------- -11/Scrapyard -10/Materials (discovered 6 exits: [*Mat x3] / *Min x2 / [Sub]) -10/Mines (discovered 3 exits: [*Mat] / *Exi / [Sub]) -10/Exiles -9/Mines (discovered 2 exits: [*Mat x2]) History --------- Turn | Location | Event 17 | -11/Scrapyard | Discovered new exit (range 16) 73 | -11/Scrapyard | Entered Materials 277 | -10/Materials | Discovered new exit (range 16) 303 | -10/Materials | Build established: Mutant 514 | -10/Materials | Discovered new exit (range 15) 557 | -10/Materials | Identified exit to Mines 737 | -10/Materials | Repaired Lgt. Nuclear Core 850 | -10/Materials | Discovered new exit (range 7) 944 | -10/Materials | Discovered new exit (range 13) 948 | -10/Materials | Discovered new exit (range 17) 1138 | -10/Materials | Entered Mines 1316 | -10/Mines | Learned location of Zion (-7) 1661 | -10/Mines | Discovered new exit (range 9) 1672 | -10/Mines | A weapon hastily lodged in a ceiling crevice suddenly fell to the ground 1700 | -10/Mines | Discovered new exit (range 9) 1767 | -10/Mines | Deemed a non-threat by the Exiles lab entrance 1767 | -10/Mines | Discovered new exit (range 5) 1831 | -10/Mines | Entered Exiles 1831 | -10/Exiles | Found Exiles lab abandoned 2581 | -10/Exiles | Discovered new exit (range 12) 2607 | -10/Exiles | Entered Mines 2613 | -9/Mines | Core integrity fell below 50% 2727 | -9/Mines | Discovered new exit (range 16) 2873 | -9/Mines | Discovered new exit (range 11) 3371 | -9/Mines | Received a Rocket Launcher from a helpful Derelict 3479 | -9/Mines | Assisted by bots powering up and referring to "LRC-V3" 3539 | -9/Mines | Learned location of Storage (-8) 3552 | -9/Mines | Assembled infested the area 3582 | -9/Mines | Core integrity fell below 20% 3583 | -9/Mines | Self-destructed Last Messages --------------- launcher? I know I would if I were you, so I'm going to lend you mine." 03371_ KB-CIV(g) slips back into the shadows. 03375_ K-01 Serf collects debris. 03375_ Acquired Rocket Launcher. 03417_ Slammed into T-07 Excavator. 03479_ Trooper 2a: "Hello LRC-V3. What is your command?" 03479_ Mercenary 2a: "Hello LRC-V3. What is your command?" 03479_ Trooper 2b: "Hello LRC-V3. What is your command?" 03539_ Acquired derelict log, extracted data. World map updated: -8/Storage. 03552_ ALERT: Infestation in the mines, dispatching Demolisher response squad. 03574_ Lgt. Treads destroyed. 03581_ Crushed as-05069. 03581_ as-05069 destroyed. 03583_ Lgt. Treads destroyed. Map ----- +----------------------------------------------------+ | ?????????????????###### ###?## ####? | | ?????????????????#### ###?##=#####% ####?? | | ????????????????### ###?###%##### #####??? | | ????????????????### ########=##### ####???? | | ????????????????## ####?### ### ##?????? | | ????????????????## ###??## ## ######?? | | #####???????????### ##???## ##%######?? | | ######??????????################# ## ##?? | | ## ####??????????################ ##### ##?? | | ## ###???????????????????## ##### ##?? | | ## ##?????????????????#### ##### #### | | ## ##?????????????????#### ## ###### #### | | ###??????????######## ### ### ## | | ####?????????######## #### #### ## | | ####????????## % ############# [ ## | | # ############# ##### ############# % ## | | # ############ #####r#######????## %[ ## | | # % ##### ########???## "" ## | | ## ################# ## ###???## """ ## | | ### ################# ##???## """ ## | | #### ####???########## ##???## ## | | ?#### #####?########## t ##???## ## | | ??### ####### ##???## ## | | ???### ##### ? ###???## ## | | ???##### #### ##?## ###????###### #### | | ????##### ### ##?###@a ##?????###### #### | | ??????### ######aa ###??????????? ##?? | | ???????### #####aaa ###??????????? ##?? | | ???????### #### #### a a ###??????????? ##?? | | ????????## ##### ### a ######???????????#####?? | | ????????## ##### ## a##### ????????????####??? | | ????????## ##### a####?????????????????????? | | ????????## #### ##### ? #???????????????? | | ????????## ### a##### ##???????????????? | | ????????## ## % ###??????????????? | | ???????? ## ###?????????????? | | ???????? ### ######## ##?????????????? | | ????????### ### ######### ????????????? | | ????????### #########????????? ????????????? | | ?????????? ########??????????? ?????????????? | | ??????????###???????????????????? ?????????????? | | ??????????###????????????????????????????????????? | | ?????????????????????????????????????????????????? | | ?????????????????????????????????????????????????? | | ?????????????????????????????????????????????????? | | ?????????????????????????????????????????????????? | | ?????????????????????????????????????????????????? | | ?????????????????????????????????????????????????? | | ?????????????????????????????????????????????????? | | ?????????????????????????????????????????????????? | +----------------------------------------------------+ Best States ------------- Heat Dissipation 25 Energy Generation 14 Energy Capacity 160 Matter Stores 300 Matter Capacity 300 Sight Range 16 Terrain Scan Density 10 Resistance: KI 20 Resistance: TH 20 Resistance: EX 20 Resistance: EM 20 Resistance: I 20 Resistance: S 20 Resistance: P 20 Evasion (%) 40 Recoil Reduction 2 Offensive Hacking 10 Item Schematics ----------------- None Robot Schematics ------------------ None Fabricated ------------ Nothing Alien Tech Used ----------------- None Achievements -------------- None Challenges ------------ None Game ------ Seed BeamCorruptionFlakker Manual? 0 Play Time 00:17:31 Cumulative 18.4 hours Start 2024.04.03 @ 17:52:07 End 2024.04.03 @ 18:15:53 Sessions 1 Manual Loads 0 Difficulty Adventurer Special Mode None Game No. 23 Rogue 20 Adventurer 3 Explorer 0 Win Type - Total 0 Types 0/0/0/0/0/0/0/0/0 Lore% 20 Gallery% 25 Achievement% 21 Wizard Run 0 Options --------- Layout 1 ASCII 0 Keyboard 0 Movement Mouse Keybinds 0 Fullscreen 1 Font 24/Smallcaps Map View 50x35 Zoom Use 0% Tactical HUD 1 Map Filters NONE Filters NONE Steam 1 RUN: 5466b63d-cbbe-401e-9112-93b50971df18